fUST/lending_fUST_20240311
["ID","MTS","AMOUNT","RATE_DAILY","PERIOD"]
[318260099,1710147035777,-306.0,0.00023945,2]
[318260100,1710147035787,-236.11236834,0.00023998,2]
[318260101,1710147035796,-163.32544229,0.00023998,2]
[318260102,1710147035805,-228.26916841,0.00023998,2]
[318260103,1710147035815,-435.35042651,0.00023998,2]
[318260104,1710147035823,-623.93583304,0.00023998,2]
[318260105,1710147035833,-703.45953046,0.00023998,2]
[318260106,1710147035843,-558.04712506,0.00023998,2]
[318260107,1710147035852,-211.97574014,0.00023998,2]
[318260108,1710147035861,-238.84175043,0.00023998,2]
[318260109,1710147035871,-155.13030946,0.00023998,2]
[318260110,1710147035881,-343.85499428,0.00023998,2]
[318260111,1710147035890,-160.19387848,0.00023998,2]
[318260112,1710147035900,-155.0294556,0.00023998,2]
[318260113,1710147035912,-1668.03514243,0.00023999,2]
[318260114,1710147035922,-157.3240075,0.00023999,2]
[318260115,1710147035932,-186.40511874,0.00023999,2]
[318260116,1710147035942,-156.00670904,0.00023999,2]
[318260117,1710147035952,-595.40091345,0.00023999,2]
[318260118,1710147035961,-2270065.46901559,0.00024,10]
[318260130,1710147038319,-269.23239559,0.0001902,2]
[318260131,1710147038329,-105.16977097,0.00024,10]
[318260133,1710147038341,-570062.31008968,0.00024,10]
[318260140,1710147038398,-7691.47267182,0.00024,10]
[318260215,1710147040600,1366.30861414,0.00027,120]
[318260219,1710147042622,-1686.54414723,0.00024,10]
[318260408,1710147059645,5000.0,0.0002,30]
[318260654,1710148233761,-155.05271792,0.00018502,2]
[318260655,1710148233770,-2385.92153039,0.00018502,2]
[318260656,1710148233780,-1882.13371677,0.00018503,2]
[318260657,1710148233789,-2036.98039368,0.00018503,2]
[318260658,1710148233799,-24900.0,0.00018504,2]
[318260659,1710148233808,-170.44986526,0.00018679,2]
[318260660,1710148233819,-307.0836943,0.00018779,2]
[318260661,1710148233828,-407.1781517,0.00018779,2]
[318260662,1710148233837,-336.76153249,0.00019,2]
[318260663,1710148233847,-167.353421,0.00019178,2]
[318260664,1710148233857,-160.806833,0.00019342,2]
[318260665,1710148233868,-500.0,0.00019999,2]
[318260666,1710148233877,-500.0,0.00019999,2]
[318260667,1710148233886,-500.0,0.00019999,2]
[318260668,1710148233895,-155.10391963,0.0002,2]
[318260669,1710148233904,-155.12254681,0.0002,2]
[318260670,1710148233914,-151.143571,0.0002,2]
[318260673,1710148233923,-9377.63420117,0.0002,5]
[318260675,1710148233935,-2424.54499428,0.0002,5]
[318260676,1710148233949,-1096042.74080455,0.0002,5]
[318260677,1710148233959,-1023.52214484,0.000217,2]
[318260678,1710148233968,-267.51630331,0.000219,2]
[318260679,1710148233977,-1023.52214479,0.00021944,2]
[318260680,1710148233986,-1023.52214479,0.00022189,2]
[318260681,1710148233995,-310.25440862,0.00022227,2]
[318260682,1710148234005,-1023.52214479,0.00022433,2]
[318260683,1710148234015,-1023.52214479,0.00022678,2]
[318260684,1710148234024,-1023.52214479,0.00022922,2]
[318260685,1710148234033,-7293.26032131,0.0002298,2]
[318260686,1710148234046,-12539.79435097,0.00023,2]
[318260687,1710148234056,-1018.27647522,0.00023,2]
[318260688,1710148234065,-5009.76214969,0.00023,2]
[318260689,1710148234074,-1023.52214479,0.00023167,2]
[318260690,1710148234083,-1023.52214479,0.00023411,2]
[318260691,1710148234093,-500.0,0.00023561,2]
[318260692,1710148234102,-500.0,0.00023561,2]
[318260693,1710148234111,-502.51970983,0.00023561,2]
[318260694,1710148234122,-500.0,0.00023561,2]
[318260695,1710148234130,-500.0,0.00023561,2]
[318260696,1710148234140,-417.83688578,0.00023561,2]
[318260697,1710148234150,-500.0,0.00023561,2]
[318260698,1710148234159,-500.0,0.00023561,2]
[318260699,1710148234169,-500.0,0.00023561,2]
[318260700,1710148234178,-500.0,0.00023561,2]
[318260701,1710148234188,-500.0,0.00023561,2]
[318260702,1710148234197,-500.0,0.00023561,2]
[318260703,1710148234207,-217.87531541,0.00023561,2]
[318260704,1710148234216,-500.0,0.00023561,2]
[318260705,1710148234225,-500.0,0.00023561,2]
[318260706,1710148234234,-500.0,0.00023561,2]
[318260707,1710148234244,-500.0,0.00023561,2]
[318260708,1710148234253,-500.0,0.00023561,2]
[318260709,1710148234262,-500.0,0.00023561,2]
[318260710,1710148234271,-500.0,0.00023561,2]
[318260711,1710148234281,-500.0,0.00023561,2]
[318260712,1710148234291,-500.0,0.00023561,2]
[318260713,1710148234300,-500.0,0.00023561,2]
[318260714,1710148234310,-500.0,0.00023561,2]
[318260715,1710148234319,-462.78,0.00023561,2]
[318260716,1710148234328,-500.0,0.00023561,2]
[318260717,1710148234338,-500.0,0.00023561,2]
[318260718,1710148234347,-500.0,0.00023561,2]
[318260719,1710148234357,-500.0,0.00023561,2]
[318260720,1710148234366,-500.0,0.00023561,2]
[318260721,1710148234379,-346.38666015,0.00023561,2]
[318260722,1710148234388,-507.84000334,0.00023561,2]
[318260723,1710148234398,-500.0,0.00023561,2]
[318260724,1710148234408,-500.0,0.00023561,2]
[318260725,1710148234418,-500.0,0.00023561,2]
[318260726,1710148234427,-500.0,0.00023561,2]
[318260727,1710148234438,-500.0,0.00023561,2]
[318260728,1710148234447,-500.0,0.00023561,2]
[318260729,1710148234456,-500.0,0.00023561,2]
[318260730,1710148234466,-500.0,0.00023561,2]
[318260731,1710148234475,-500.0,0.00023561,2]
[318260732,1710148234486,-500.0,0.00023561,2]
[318260733,1710148234498,-500.0,0.00023561,2]
[318260734,1710148234507,-500.0,0.00023561,2]
[318260735,1710148234516,-500.0,0.00023561,2]
[318260736,1710148234525,-500.0,0.00023561,2]
[318260737,1710148234535,-500.0,0.00023561,2]
[318260738,1710148234544,-500.0,0.00023561,2]
[318260739,1710148234554,-500.0,0.00023561,2]
[318260740,1710148234564,-500.0,0.00023561,2]
[318260741,1710148234574,-500.0,0.00023561,2]
[318260742,1710148234583,-500.0,0.00023561,2]
[318260743,1710148234593,-500.0,0.00023561,2]
[318260744,1710148234602,-500.0,0.00023561,2]
[318260745,1710148234612,-500.0,0.00023561,2]
[318260746,1710148234625,-500.0,0.00023561,2]
[318260747,1710148234634,-537.35528985,0.00023561,2]
[318260748,1710148234644,-500.0,0.00023561,2]
[318260749,1710148234654,-506.82342126,0.00023561,2]
[318260750,1710148234663,-409.44958154,0.00023561,2]
[318260751,1710148234673,-575.18897731,0.00023561,2]
[318260752,1710148234683,-542.22,0.00023561,2]
[318260753,1710148234693,-542.22,0.00023561,2]
[318260754,1710148234703,-542.22,0.00023561,2]
[318260755,1710148234713,-542.22,0.00023561,2]
[318260756,1710148234818,-542.22,0.00023561,2]
[318260757,1710148234832,-542.22,0.00023561,2]
[318260759,1710148234841,-542.22,0.00023561,2]
[318260760,1710148234851,-542.22,0.00023561,2]
[318260762,1710148234861,-542.22,0.00023561,2]
[318260764,1710148234873,-542.22,0.00023561,2]
[318260765,1710148234882,-542.22,0.00023561,2]
[318260766,1710148234891,-542.22,0.00023561,2]
[318260767,1710148234900,-542.22,0.00023561,2]
[318260768,1710148234910,-542.22,0.00023561,2]
[318260769,1710148234919,-542.22,0.00023561,2]
[318260770,1710148234928,-542.22,0.00023561,2]
[318260771,1710148234937,-542.22,0.00023561,2]
[318260772,1710148234947,-542.22,0.00023561,2]
[318260773,1710148234956,-542.22,0.00023561,2]
[318260774,1710148234965,-542.22,0.00023561,2]
[318260775,1710148234974,-542.22,0.00023561,2]
[318260776,1710148234983,-542.22,0.00023561,2]
[318260777,1710148234993,-542.22,0.00023561,2]
[318260778,1710148235002,-542.34,0.00023561,2]
[318260779,1710148235011,-500.0,0.00023561,2]
[318260780,1710148235021,-500.0,0.00023561,2]
[318260781,1710148235030,-500.0,0.00023561,2]
[318260782,1710148235040,-500.0,0.00023561,2]
[318260783,1710148235050,-500.0,0.00023561,2]
[318260784,1710148235059,-500.0,0.00023561,2]
[318260785,1710148235072,-1023.52214479,0.00023656,2]
[318260786,1710148235082,-20019.7631288,0.000239,2]
[318260787,1710148235091,-1023.52214479,0.000239,2]
[318260788,1710148235101,-23681.85406072,0.00023911,2]
[318260789,1710148235111,-8483.31914827,0.00023998,2]
[318260790,1710148235123,-155.12720431,0.00023998,2]
[318260791,1710148235133,-271.64512755,0.00023999,2]
[318260792,1710148235143,-254.9147828,0.00023999,2]
[318260793,1710148235154,-390.62768701,0.00023999,2]
[318260794,1710148235164,-250.0,0.00023999,21]
[318260795,1710148235174,-1767778.46675445,0.00024,10]
[318260810,1710148238502,-170.44986526,0.0002129,2]
[318260812,1710148238512,-1923.0329794,0.00024,10]
[318260814,1710148238523,-10261.28380464,0.00024,10]
[318260816,1710148238536,-470.94318688,0.00024,10]
[318260872,1710148243470,-170.44986526,0.000239,2]
[318260873,1710148243480,-29311.13380644,0.00024,10]
[318260874,1710148243500,-866.81039979,0.00024,10]
[318260902,1710148247612,-488.51435115,0.00022799,2]
[318260903,1710148247621,-26359.13598297,0.00024,10]
[318260905,1710148247674,-3126.52862964,0.00024,10]
[318261160,1710149433716,-450.47000349,0.00021529,2]
[318261636,1710149438647,-892.67440871,0.00021529,2]
[318262174,1710149443757,-155.09615962,0.00021528,2]
[318262176,1710149443768,-538.98930457,0.00021529,2]
[318262178,1710149443777,-1697.4836614,0.00021529,2]
[318262180,1710149443787,-1325.51196133,0.0002153,2]
[318262183,1710149443796,-158.183356,0.00021543,2]
[318262186,1710149443805,-659.0706565,0.00021605,2]
[318262189,1710149443814,-1275.96131642,0.00021821,2]
[318262550,1710149447756,-17460.71184168,0.00021821,2]
[318262552,1710149447766,-378.29128676,0.000219,2]
[318262554,1710149447775,-159.48753833,0.00022904,2]
[318262556,1710149447785,-262.48262514,0.00023998,7]
[318262558,1710149447795,-429.16778282,0.00023998,2]
[318262560,1710149447805,-3275.86479438,0.00023998,2]
[318262562,1710149447817,-5207.45435389,0.00023998,2]
[318262564,1710149447827,-1379.25189905,0.00023998,2]
[318262566,1710149447837,-155.13030946,0.00023998,2]
[318262568,1710149447848,-558.30663003,0.00023998,2]
[318262570,1710149447858,-266.1686083,0.00023999,2]
[318262572,1710149447868,-500.0,0.00023999,2]
[318262574,1710149447878,-500.36628423,0.00023999,2]
[318262576,1710149447888,-500.0,0.00023999,2]
[318262578,1710149447898,-500.0,0.00023999,2]
[318262580,1710149447908,-500.57300094,0.00023999,2]
[318262582,1710149447919,-500.0,0.00023999,2]
[318262584,1710149447928,-508.27801338,0.00023999,2]
[318262586,1710149447938,-506.99314472,0.00023999,30]
[318262588,1710149447948,-185.89620389,0.00024,3]
[318262590,1710149447958,-9698.08155211,0.00024,10]
[318263508,1710149457636,1000.0,0.00027,120]
[318267131,1710150633007,-155.09150399,0.0002175,2]
[318267133,1710150633017,-1882.13371677,0.0002175,2]
[318267135,1710150633026,-392.57405448,0.00021751,2]
[318267138,1710150633039,-715.28,0.00021751,2]
[318267140,1710150633050,-217.65790685,0.00021751,2]
[318267142,1710150633059,-139.07876301,0.00021752,2]
[318267592,1710150637819,-745.31022458,0.00021752,2]
[318267594,1710150637829,-164.232121,0.00021837,2]
[318267596,1710150637840,-653.33840009,0.000219,2]
[318267598,1710150637849,-3967.3826197,0.00021937,2]
[318267599,1710150637858,-218.0,0.00022,2]
[318267600,1710150637867,-158.183356,0.00022032,2]
[318267601,1710150637876,-176.49595445,0.00023,2]
[318267602,1710150637885,-171.55546,0.00023353,2]
[318267603,1710150637894,-10787.05566526,0.000234,2]
[318267604,1710150637904,-622.82506069,0.00023453,2]
[318267605,1710150637913,-171.55545999,0.00023627,2]
[318267606,1710150637923,-1536.61648508,0.000239,2]
[318267607,1710150637935,-8063.38351493,0.000239,2]
[318267608,1710150637944,-171.55545999,0.000239,2]
[318267609,1710150637953,-1771.76746028,0.00023975,2]
[318267610,1710150637962,-429.16778282,0.00023998,2]
[318267611,1710150637971,-8483.31914827,0.00023998,2]
[318267612,1710150637981,-155.14894299,0.00023998,2]
[318267613,1710150637990,-5754.86658378,0.00023998,2]
[318267614,1710150638001,-12608.55451522,0.00023998,2]
[318267615,1710150638010,-1109.72164637,0.00023998,2]
[318267616,1710150638019,-5577.181826,0.00023999,2]
[318267617,1710150638027,-500.0,0.00023999,2]
[318267618,1710150638037,-500.0,0.00023999,2]
[318267620,1710150638047,-500.0,0.00023999,2]
[318267622,1710150638056,-500.0,0.00023999,2]
[318267623,1710150638065,-500.0,0.00023999,2]
[318267625,1710150638074,-500.0,0.00023999,2]
[318267627,1710150638084,-500.0,0.00023999,2]
[318267630,1710150638094,-500.47713868,0.00023999,2]
[318267631,1710150638103,-169.54422804,0.00023999,2]
[318267633,1710150638112,-567.75007304,0.00024,10]
[318267636,1710150638124,-254.56635459,0.00024,10]
[318267638,1710150638135,-15823.40895169,0.00024,10]
[318267835,1710150639924,-724.06382818,0.00024,10]
[318267837,1710150639936,-7045.02213107,0.00024,10]
[318268207,1710150643181,-241355.06058519,0.00024,10]
[318268209,1710150643194,-56487.94876312,0.00024,10]
[318268211,1710150643206,-559.30767319,0.00024,10]
[318268213,1710150643218,-7050.0,0.00024,10]
[318268216,1710150643230,-6500.00000001,0.00024,10]
[318268547,1710150646061,-745.89935805,0.00023999,2]
[318268549,1710150646071,-627.10960886,0.00023999,2]
[318268551,1710150646080,-197.13350043,0.00024,10]
[318268558,1710150646134,-1599.39891747,0.00024,10]
[318268680,1710151483314,355.019539,0.0001943,2]
[318268681,1710151547418,155.13962566,0.0001943,2]
[318268683,1710151561387,155.13962566,0.0001943,2]
[318268684,1710151575479,155.13962566,0.0001943,2]
[318268685,1710151578384,155.13962566,0.0001943,2]
[318268687,1710151588351,554.5398758,0.000189,2]
[318268688,1710151592882,155.13962566,0.0001943,2]
[318268689,1710151595417,237.99510775,0.0001943,2]
[318268690,1710151608893,155.13962566,0.0001943,2]
[318268809,1710151791995,24890.0,0.00019339,2]
[318268829,1710151832157,-690.59173185,0.00020234,2]
[318268832,1710151832267,-884.38898759,0.00020234,2]
[318268834,1710151832277,-280.59398079,0.00020235,2]
[318268835,1710151832287,-429.31792098,0.00020235,2]
[318268836,1710151832297,-155.13962566,0.00020236,2]
[318268837,1710151832307,-1882.13371677,0.00020236,2]
[318268838,1710151832317,-957.28758865,0.00020237,2]
[318268839,1710151832327,-47665.43016858,0.00020335,2]
[318268840,1710151832337,-15260.91521873,0.00020336,2]
[318268841,1710151832346,-181.245409,0.00020379,2]
[318268842,1710151832356,-1000.5257214,0.00020794,2]
[318268843,1710151832366,-504.8960107,0.00021,7]
[318268844,1710151832375,-647.54104253,0.00021448,2]
[318268845,1710151832385,-202.25268222,0.000216,2]
[318268846,1710151832395,-333.90184257,0.00021654,2]
[318268847,1710151832404,-251.0,0.00022,2]
[318268848,1710151832414,-251.0,0.00022192,2]
[318268849,1710151832424,-621.37705213,0.00022521,2]
[318268850,1710151832433,-500.0,0.00022997,2]
[318268851,1710151832445,-500.0,0.00022997,2]
[318268852,1710151832454,-500.0,0.00022997,2]
[318268853,1710151832463,-483.99693832,0.00022997,2]
[318268854,1710151832473,-500.0,0.00022997,2]
[318268855,1710151832483,-500.0,0.00022997,2]
[318268856,1710151832493,-500.0,0.00022997,2]
[318268857,1710151832502,-3682.32723561,0.00022998,2]
[318268858,1710151832514,-54014.04184655,0.00022998,2]
[318268859,1710151832523,-251.0,0.00023014,2]
[318268860,1710151832533,-500.0,0.00023561,2]
[318268861,1710151832542,-500.0,0.00023561,2]
[318268862,1710151832551,-502.39194081,0.00023561,2]
[318268863,1710151832560,-500.0,0.00023561,2]
[318268864,1710151832569,-500.0,0.00023561,2]
[318268865,1710151832579,-500.0,0.00023561,2]
[318268866,1710151832589,-500.0,0.00023561,2]
[318268867,1710151832598,-500.0,0.00023561,2]
[318268868,1710151832607,-500.0,0.00023561,2]
[318268869,1710151832617,-500.0,0.00023561,2]
[318268870,1710151832626,-501.0877575,0.00023561,2]
[318268871,1710151832636,-500.0,0.00023561,2]
[318268872,1710151832646,-500.0,0.00023561,2]
[318268873,1710151832656,-500.0,0.00023561,2]
[318268874,1710151832665,-500.34883361,0.00023561,2]
[318268875,1710151832675,-500.0,0.00023561,2]
[318268876,1710151832684,-500.0,0.00023561,2]
[318268877,1710151832695,-500.76304905,0.00023561,2]
[318268879,1710151832704,-366.08107603,0.00023561,2]
[318268880,1710151832713,-500.0,0.00023561,2]
[318268882,1710151832723,-500.0,0.00023561,2]
[318268884,1710151832732,-502.69,0.00023561,2]
[318268885,1710151832741,-508.41116956,0.00023561,2]
[318268886,1710151832750,-500.0,0.00023561,2]
[318268887,1710151832760,-247.18045082,0.00023561,2]
[318268888,1710151832769,-500.0,0.00023561,2]
[318268889,1710151832779,-500.0,0.00023561,2]
[318268890,1710151832789,-309.04273382,0.00023561,2]
[318268891,1710151832798,-500.0,0.00023561,2]
[318268892,1710151832808,-500.0,0.00023561,2]
[318268893,1710151832818,-502.28778265,0.00023561,2]
[318268894,1710151832828,-500.0,0.00023561,2]
[318268895,1710151832837,-500.0,0.00023561,2]
[318268896,1710151832847,-151.0,0.00023561,2]
[318268897,1710151832856,-151.0,0.00023561,2]
[318268898,1710151832865,-151.0,0.00023561,2]
[318268899,1710151832875,-500.0,0.00023561,2]
[318268900,1710151832884,-500.72969287,0.00023561,2]
[318268901,1710151832894,-506.43,0.00023561,2]
[318268902,1710151832903,-502.88035479,0.00023561,2]
[318268903,1710151832913,-500.0,0.00023561,2]
[318268904,1710151832922,-500.0,0.00023561,2]
[318268905,1710151832932,-500.0,0.00023561,2]
[318268906,1710151832943,-500.0,0.00023561,2]
[318268907,1710151832953,-500.0,0.00023561,2]
[318268908,1710151832963,-693.21,0.00023561,2]
[318268909,1710151832972,-693.21,0.00023561,2]
[318268910,1710151832982,-693.21,0.00023561,2]
[318268911,1710151832992,-261.78447746,0.00023561,2]
[318268912,1710151833002,-516.15486763,0.00023561,2]
[318268913,1710151833011,-500.0,0.00023561,2]
[318268914,1710151833020,-232.49129884,0.00023561,2]
[318268915,1710151833029,-500.0,0.00023561,2]
[318268916,1710151833040,-500.0,0.00023561,2]
[318268917,1710151833053,-500.0,0.00023561,2]
[318268918,1710151833062,-286.7363391,0.00023561,2]
[318268919,1710151833071,-500.0,0.00023561,2]
[318268920,1710151833080,-500.0,0.00023561,2]
[318268921,1710151833090,-501.75205235,0.00023561,2]
[318268922,1710151833100,-500.0,0.00023561,2]
[318268923,1710151833109,-500.0,0.00023561,2]
[318268924,1710151833118,-500.0,0.00023561,2]
[318268925,1710151833127,-475.86922732,0.00023561,2]
[318268926,1710151833137,-496.55522191,0.00023561,2]
[318268927,1710151833147,-500.30178793,0.00023561,2]
[318268928,1710151833156,-500.0,0.00023561,2]
[318268929,1710151833165,-500.0,0.00023561,2]
[318268930,1710151833174,-507.08826788,0.00023561,2]
[318268931,1710151833184,-500.0,0.00023561,2]
[318268932,1710151833194,-500.0,0.00023561,2]
[318268933,1710151833203,-500.0,0.00023561,2]
[318268934,1710151833213,-500.5328262,0.00023561,2]
[318268935,1710151833222,-500.0,0.00023561,2]
[318268936,1710151833233,-509.95410364,0.00023561,2]
[318268937,1710151833242,-500.0,0.00023561,2]
[318268938,1710151833252,-500.0,0.00023561,2]
[318268939,1710151833262,-500.0,0.00023561,2]
[318268940,1710151833272,-500.0,0.00023561,2]
[318268941,1710151833281,-643.92488231,0.00023561,2]
[318268942,1710151833291,-500.0,0.00023561,2]
[318268943,1710151833300,-500.0,0.00023561,2]
[318268944,1710151833309,-500.0,0.00023561,2]
[318268945,1710151833318,-500.0,0.00023561,2]
[318268946,1710151833327,-500.47262812,0.00023561,2]
[318268947,1710151833336,-500.0,0.00023561,2]
[318268948,1710151833345,-500.0,0.00023561,2]
[318268949,1710151833354,-500.0,0.00023561,2]
[318268950,1710151833364,-500.0,0.00023561,2]
[318268951,1710151833373,-500.0,0.00023561,2]
[318268952,1710151833383,-500.0,0.00023561,2]
[318268953,1710151833392,-500.0,0.00023561,2]
[318268954,1710151833402,-332.04,0.00023561,2]
[318268955,1710151833412,-201.6982011,0.000237,2]
[318268956,1710151833421,-362.95452614,0.000239,2]
[318268957,1710151833430,-554.5398758,0.000239,2]
[318268958,1710151833441,-1771.76746028,0.00023974,2]
[318268959,1710151833450,-8247.0923253,0.00023975,2]
[318268960,1710151833459,-500.0,0.00023997,2]
[318268961,1710151833469,-325.10159524,0.00023998,2]
[318268962,1710151833478,-589.51621214,0.00023998,2]
[318268963,1710151833489,-160.19387848,0.00023998,2]
[318268964,1710151833498,-188.47150508,0.00023998,2]
[318268965,1710151833507,-155.09150399,0.00023998,2]
[318268966,1710151833516,-155.15204901,0.00023998,2]
[318268967,1710151833526,-2003.13052769,0.00023998,2]
[318268968,1710151833535,-1668.60545366,0.00023998,2]
[318268969,1710151833545,-155.07443573,0.00023998,2]
[318268970,1710151833554,-398.59,0.00023998,2]
[318268971,1710151833564,-693.21,0.00023998,2]
[318268972,1710151833573,-498.26,0.00023998,2]
[318268973,1710151833582,-500.0,0.00023998,2]
[318268974,1710151833592,-500.0,0.00023998,2]
[318268975,1710151833602,-2231.66397149,0.00023999,5]
[318268976,1710151833613,-682.55292822,0.00023999,2]
[318268977,1710151833622,-327.45198075,0.00023999,2]
[318268978,1710151833631,-684.59681226,0.00023999,2]
[318268979,1710151833641,-155.11168041,0.00023999,2]
[318268980,1710151833651,-779.13788381,0.00023999,2]
[318268981,1710151833662,-184.20532805,0.00023999,2]
[318268982,1710151833672,-171.30969927,0.00023999,2]
[318268983,1710151833684,-500.0,0.00023999,2]
[318268984,1710151833696,-500.0,0.00023999,2]
[318268985,1710151833705,-427.67463515,0.00023999,2]
[318268986,1710151833714,-321.18363204,0.00023999,2]
[318268987,1710151833724,-500.0,0.00023999,2]
[318268988,1710151833733,-501.83136931,0.00023999,2]
[318268989,1710151833743,-500.0,0.00023999,2]
[318268990,1710151833752,-160.88952162,0.00023999,2]
[318268991,1710151833761,-500.0,0.00023999,2]
[318268992,1710151833771,-502.04090212,0.00023999,2]
[318268993,1710151833780,-501.63276702,0.00023999,2]
[318268994,1710151833789,-500.0,0.00023999,2]
[318268995,1710151833799,-500.0,0.00023999,2]
[318268996,1710151833808,-500.0,0.00023999,2]
[318268997,1710151833817,-500.0,0.00023999,2]
[318268998,1710151833829,-500.0,0.00023999,2]
[318268999,1710151833838,-457.45410061,0.00023999,2]
[318269000,1710151833847,-500.0,0.00023999,2]
[318269001,1710151833857,-562.37152596,0.00023999,2]
[318269002,1710151833866,-500.0,0.00023999,2]
[318269003,1710151833876,-501.9230687,0.00023999,2]
[318269004,1710151833885,-500.0,0.00023999,2]
[318269005,1710151833894,-500.0,0.00023999,2]
[318269006,1710151833904,-500.0,0.00023999,2]
[318269007,1710151833914,-500.0,0.00023999,2]
[318269008,1710151833924,-500.0,0.00023999,2]
[318269009,1710151833933,-500.0,0.00023999,2]
[318269010,1710151833944,-178.25577196,0.00023999,2]
[318269011,1710151833953,-500.0,0.00023999,2]
[318269012,1710151833963,-693.21,0.00023999,2]
[318269013,1710151833973,-693.21,0.00023999,2]
[318269014,1710151833982,-693.21,0.00023999,2]
[318269015,1710151833992,-693.21,0.00023999,2]
[318269016,1710151834001,-693.21,0.00023999,2]
[318269017,1710151834011,-693.21,0.00023999,2]
[318269018,1710151834021,-693.21,0.00023999,2]
[318269019,1710151834034,-693.21,0.00023999,2]
[318269020,1710151834045,-693.21,0.00023999,2]
[318269021,1710151834054,-693.21,0.00023999,2]
[318269022,1710151834068,-693.21,0.00023999,2]
[318269023,1710151834078,-693.21,0.00023999,2]
[318269024,1710151834087,-693.21,0.00023999,2]
[318269025,1710151834099,-693.21,0.00023999,2]
[318269026,1710151834109,-693.21,0.00023999,2]
[318269027,1710151834118,-693.21,0.00023999,2]
[318269028,1710151834128,-693.21,0.00023999,2]
[318269029,1710151834137,-693.21,0.00023999,2]
[318269030,1710151834147,-693.21,0.00023999,2]
[318269031,1710151834156,-693.24,0.00023999,2]
[318269032,1710151834165,-500.0,0.00023999,2]
[318269033,1710151834175,-500.0,0.00023999,2]
[318269034,1710151834184,-500.0,0.00023999,2]
[318269035,1710151834195,-199.43904163,0.00023999,2]
[318269036,1710151834204,-342.61727589,0.00023999,2]
[318269037,1710151834214,-204.47601611,0.00024,3]
[318269038,1710151834223,-61416.23093084,0.00024,10]
[318269410,1710151847665,-155.13962566,0.00020233,2]
[318269411,1710151847675,-500.0,0.00022997,2]
[318269412,1710151847684,-212.33846165,0.00022997,2]
[318269413,1710151847693,-72.52191269,0.00022997,2]
[318269415,1710151847707,-427.47808731,0.00022997,2]
[318269417,1710151847717,-1033.90553713,0.00023461,2]
[318269419,1710151847727,-547.28,0.00023561,2]
[318269421,1710151847738,-47665.43016858,0.00023999,2]
[318269423,1710151847747,-280.50286903,0.00023999,2]
[318269426,1710151847757,-429.08969711,0.00023999,2]
[318269429,1710151847767,-84322.47126742,0.00024,10]
[318269432,1710151847855,-805.4,0.00024,10]
[318269442,1710152526434,20108.3715,0.0002,2]
[318269450,1710152793176,310.81422029,0.000189,2]
[318269452,1710152888221,15952.47806843,0.000189,2]
[318269453,1710152902203,15952.47806843,0.000189,2]
[318269467,1710152920170,12995.89271833,0.000189,2]
[318270301,1710153040234,-1882.13371677,0.00020188,2]
[318270303,1710153040244,-690.59173185,0.00020189,2]
[318270305,1710153040254,-884.38898759,0.0002019,2]
[318270307,1710153040263,-247.46245553,0.00020239,2]
[318270309,1710153040272,-177.509769,0.0002154,2]
[318270311,1710153040281,-142.61333926,0.00022161,2]
[318270607,1710153043277,-155.13962566,0.00020187,2]
[318270609,1710153043287,-24747.38666074,0.00022161,2]
[318270610,1710153043296,-411.57462861,0.00022841,2]
[318270612,1710153043306,-648.98547869,0.00022842,30]
[318270613,1710153043315,-500.0,0.00023561,2]
[318270615,1710153043326,-310.81422029,0.000239,2]
[318270617,1710153043336,-4301.8577015,0.000239,2]
[318270618,1710153043346,-197.04010283,0.000239,2]